Cogmind - Beta 9.6 @@@ ROGUE MODE // 2020.06.05 @ 03:36:11 // AFD2020/Player2 Player: Rod99 Result: Core destroyed Performance ------------- Evolutions (0) 0 Regions Visited (1) 200 Robots Destroyed (12) 60 Value Destroyed (328) 328 Prototype IDs (0) 0 Alien Tech Used (0) 0 Bonus (56) 56 TOTAL SCORE: 644 Bonus ------- Follower Combat Kills 227 Friendly Fire -171 Cogmind --------- Core Integrity 0/250 Matter 297/300 Energy 121/250 System Corruption 0% Temperature Cool (0) Movement Rolling (80) Location -10/Materials Parts ------- > --- POWER (1) -------- Ion Engine > --- PROPULSION (2) --- Wheel Wheel > --- UTILITY (2) ------ Small Storage Unit Structural Scanner > --- WEAPON (2) ------- Light EM Pulse Cannon Light EM Pulse Cannon > --- INVENTORY (6) ---- Terrain Scanner Spread Laser Spread Laser Light Assault Rifle Datajack Peak State ------------ > --- POWER ------------ Ion Engine > --- PROPULSION ------- Wheel Wheel > --- UTILITY ---------- Small Storage Unit Visual Processing Unit > --- WEAPON ----------- Spread Laser Spread Laser > --- INVENTORY -------- Light EM Pulse Cannon Light EM Pulse Cannon Assault Rifle Light Assault Rifle [Rating: 10] Favorites ----------- Power Ion Engine Engine Ion Engine Propulsion Wheel Wheel Wheel Utility Small Storage Unit Device Structural Scanner Storage Small Storage Unit Processor Visual Processing Unit Weapon Light EM Pulse Cannon Energy Gun Spread Laser Energy Cannon Light EM Pulse Cannon Ballistic Gun Light Assault Rifle Build | -11 -10 ------- Run | Scr Mat Slots Evolved . | . . Power . | . . Propulsion . | . . Utility . | . . Weapon . | . . Parts Attached 23 | 5 18 Power 6 | 2 4 Engine 6 | 2 4 Core . | . . Reactor . | . . Propulsion 4 | 2 2 Treads . | . . Leg . | . . Wheel 4 | 2 2 Hover . | . . Flight . | . . Utility 6 | 1 5 Device 3 | . 3 Storage 1 | 1 . Processor 2 | . 2 Hackware . | . . Protection . | . . Artifact . | . . Weapon 7 | . 7 Energy Gun 2 | . 2 Energy Cannon 3 | . 3 Ballistic Gun 2 | . 2 Ballistic Cannon . | . . Launcher . | . . Special Weapon . | . . Impact Weapon . | . . Slashing Weapon . | . . Piercing Weapon . | . . Special Melee Weapon . | . . Unidentified Prototypes . | . . Parts Lost 2 | . 2 Power . | . . Propulsion 1 | . 1 Utility 1 | . 1 Weapon . | . . Highest Loss Streak 2 | . 2 Average Slot Usage (%) 97 | . 97 Engine 14 | . 14 Wheel 27 | . 27 Device 11 | . 11 Storage 14 | . 14 Energy Gun 2 | . 2 Energy Cannon 22 | . 22 Ballistic Gun 3 | . 3 Naked Turns . | . . Heaviest Build 18 | 9 18 Greatest Support 20 | 20 20 Greatest Overweight (x) 2 | 2 1 Average Overweight (x) . | 1 . Largest Inventory Capacity 6 | 6 6 Average Capacity 5 | 5 6 Most Carried 6 | 6 6 Average Carried 3 | 2 3 Final Capacity 6 | 6 6 Final Carried 5 | 4 5 Class Distribution -------------------- 100% | Mutant Dominant Class ---------------- Mutant | -10/Materials Resources | -11 -10 ----------- Run | Scr Mat Matter Collected 425 | 240 185 Remotely . | . . Salvage Created 300 | . 300 Parts 26 | . 26 Haulers Intercepted . | . . Recyclers Shooed . | . . Parts Field Recycled . | . . Retrieved Matter . | . . Parts Self-Destructed . | . . Prevented . | . . Kills | -11 -10 ------- Run | Scr Mat Combat Hostiles Destroyed 6 | . 6 Guns 1 | . 1 Cannons 5 | . 5 Classes Destroyed 6 | . 6 Worker 1 | . 1 Builder 1 | . 1 Tunneler 1 | . 1 Operator 1 | . 1 Watcher 2 | . 2 Grunt 6 | . 6 Best Kill Streak 3 | . 3 Combat Bots Only 2 | . 2 Max Kills in Single Turn 2 | . 2 Gunslinging . | . . Exploded . | . . Melee . | . . Uniques/NPCs Destroyed . | . . Combat | -11 -10 -------- Run | Scr Mat Damage Taken 489 | . 489 Core 179 | . 179 Absorbed by Shields . | . . Core Remaining (%) 100 | 100 . Volleys Fired 34 | . 34 Largest 2 | . 2 Hottest 130 | . 130 Shots Fired 68 | . 68 Gun 12 | . 12 Cannon 56 | . 56 Launcher . | . . Special . | . . Kinetic . | . . Thermal 12 | . 12 Explosive . | . . Electromagnetic 56 | . 56 Robot Hit Streak 7 | . 7 Robot Miss Streak 9 | . 9 Penetration Max . | . . Secondary Targets . | . . Shots Hit Robots 40 | . 40 Core Hits 25 | . 25 Critical Hits . | . . Critical Kills . | . . Critical Parts Destroyed . | . . Melee Attacks . | . . Impact . | . . Slashing . | . . Piercing . | . . Sneak Attacks . | . . Combat Hostiles . | . . Follow-up Attacks . | . . Damage Inflicted 1037 | . 1037 Guns 139 | . 139 Cannons 589 | . 589 Explosions 288 | . 288 Melee . | . . Ramming 21 | . 21 Kinetic . | . . Thermal 164 | . 164 Explosive 263 | . 263 Electromagnetic 589 | . 589 Impact . | . . Slashing . | . . Piercing . | . . Highest Corruption . | . . Average Corruption . | . . Corruption Purged . | . . Overload Shots . | . . Overflow Damage 124 | . 124 Projectiles 38 | . 38 Explosions 86 | . 86 Melee . | . . Knockbacks . | . . Impact . | . . Kinetic . | . . Secondary . | . . Self-Inflicted Damage 158 | . 158 Shots 2 | . 2 Rammed 1 | . 1 Targets Rammed 1 | . 1 Kicked . | . . Crushed . | . . Highest Temperature 452 | . 452 Average Temperature 96 | . 96 Received Heat Transfer 181 | . 181 Effects 4 | . 4 Shutdowns 1 | . 1 Energy Bleed 2 | . 2 Matter Decay 1 | . 1 Siege Activations . | . . Robots Corrupted . | . . Combat Hostiles . | . . Parts Fried 3 | . 3 Impact Corruptions . | . . Robots Melted . | . . Combat Hostiles . | . . Parts Melted . | . . Heat Transferred 189 | . 189 Parts Sabotaged . | . . Parts Stolen . | . . Parts Stripped . | . . Power Chain Reactions 1 | . 1 Missiles Intercepted . | . . Alert | -11 -10 ------- Run | Scr Mat Peak Influence 426 | . 426 Average Influence 192 | . 210 Maximum Alert Level 2 | . 2 Low Security (%) 45 | 100 40 Level 1 50 | . 54 Level 2 4 | . 4 Level 3 . | . . Level 4 . | . . Level 5 . | . . High Security . | . . Max Security . | . . Squads Dispatched 5 | . 5 Investigation 2 | . 2 Extermination . | . . Reinforcement 3 | . 3 Assault . | . . Garrison . | . . Intercept . | . . Construction Impeded . | . . Haulers Reinforced . | . . Stealth | -11 -10 --------- Run | Scr Mat Distress Signals 1 | . 1 Communications Jammed . | . . Distress Signals . | . . Times Spotted 24 | . 24 Peak Tracking Total 4 | . 4 Tactical Retreats 1 | . 1 Traps | -11 -10 ------- Run | Scr Mat Traps Triggered . | . . Indirectly . | . . Trap Hack Attempts . | . . Triggered . | . . Disarmed . | . . Reprogrammed . | . . Reused . | . . Traps Extracted . | . . Installed . | . . Triggered . | . . Machines | -11 -10 ---------- Run | Scr Mat Machines Disabled 5 | . 5 Max in Single Turn 2 | . 2 Machines Sabotaged . | . . Garrisons Compromised . | . . Overloaded Fab Kills . | . . Fab Network Shutdowns . | . . Hacking | -11 -10 --------- Run | Scr Mat Machines Accessed 5 | . 5 Terminals 3 | . 3 Fabricators . | . . Repair Stations 1 | . 1 Recycling Units 1 | . 1 Scanalyzers . | . . Garrison Access . | . . Total Hacks 17 | . 17 Successful 9 | . 9 Failed 8 | . 8 Catastrophic 3 | . 3 Database Lockouts . | . . Manual . | . . Terminals 10 | . 10 Fabricators . | . . Repair Stations 4 | . 4 Recycling Units 3 | . 3 Scanalyzers . | . . Garrison Access . | . . Terminal Hacks 3 | . 3 Record 2 | . 2 Alert Level 1 | . 1 Fabricator Hacks . | . . Repair Station Hacks 3 | . 3 Scan Component 1 | . 1 Repair 1 | . 1 Refit 1 | . 1 Recycling Unit Hacks 3 | . 3 Recycle Component 1 | . 1 Process 1 | . 1 Report Inventory 1 | . 1 Scanalyzer . | . . Garrison Access Hacks . | . . Unauthorized Hacks . | . . Terminals . | . . Fabricators . | . . Repair Stations . | . . Recycling Units . | . . Scanalyzers . | . . Garrison Access . | . . Data Cores Recovered . | . . Used . | . . Hacking Detections 4 | . 4 Full Trace Events 4 | . 4 Feedback Events . | . . Feedback Blocked . | . . Robot Schematics Acquired . | . . Robots Built . | . . Matter . | . . Time . | . . Total Robot Build Rating . | . . Part Schematics Acquired . | . . Parts Built . | . . Matter . | . . Time . | . . Total Part Build Rating . | . . Parts Repaired 1 | . 1 Time 32 | . 32 Parts Recycled 1 | . 1 Recycled Matter 203 | . 203 Retrieved Matter . | . . Retrieved Components . | . . Parts Scanalyzed . | . . Part Schematics Acquired . | . . Parts Damaged . | . . Bothacking | -11 -10 ------------ Run | Scr Mat Used RIF Installer . | . . Robots Hacked . | . . Non-combat . | . . Combat . | . . Robot Hacks Applied . | . . Relay Couplers Released . | . . Robots Rewired . | . . Allies Hacked . | . . Hacks Repelled . | . . Allies | -11 -10 -------- Run | Scr Mat Total Allies 1 | . 1 Largest Group 1 | . 1 Highest-Rated Group 62 | . 62 Highest-Rated Ally 62 | . 62 Total Orders . | . . Ally Attacks 44 | . 44 Total Damage 736 | . 736 Kills 12 | . 12 Allies Corrupted . | . . Allies Melted . | . . Intel | -11 -10 ------- Run | Scr Mat Robot Analysis Total . | . . Derelict Logs Recovered . | . . Drone Launches . | . . Drone Recoveries . | . . Exploration | -11 -10 ------------- Run | Scr Mat Turns Passed 830 | 70 760 Spaces Moved 711 | 46 665 Core 29 | 29 . Treads . | . . Legs . | . . Wheels 682 | 17 665 Hover . | . . Flight . | . . Fastest Speed 50 | 50 80 Average Speed 82 | 111 80 Slowest Speed 150 | 150 90 Overloaded Moves . | . . Propulsion Burnouts . | . . Robots Hopped . | . . Cave-ins Triggered . | . . Exploration Rate (%) 39 | 5 74 Regions Visited 1 Branch Regions . Pre-discovered Areas . | . . Known Exits Taken . | . . Unknown Exits Taken 1 | 1 . Scrap Searched . | . . Spaces Dug . | . . Terrain Destroyed 85 | . 85 Melee . | . . Projectile . | . . AOE 85 | . 85 Actions | -11 -10 --------- Run | Scr Mat Total 886 | 64 822 Wait 86 | 6 80 Move 710 | 45 665 Hop . | . . Pick Up 24 | 8 16 Fast Attach . | . . Attach 10 | 4 6 Detach . | . . Swap 13 | 1 12 Drop 8 | . 8 Fire 34 | . 34 Melee . | . . Ram 1 | . 1 Kick . | . . Crush . | . . Escape Stasis . | . . Rewire . | . . Trap . | . . Miscellaneous . | . . Route ------- -11/Scrapyard -10/Materials (discovered 2 exits: [*Mat] / [*Min]) History --------- Turn | Location | Event 18 | -11/Scrapyard | Discovered new exit (range 16) 71 | -11/Scrapyard | Entered Materials 302 | -10/Materials | Build established: Mutant 309 | -10/Materials | Discovered new exit (range 13) 398 | -10/Materials | Discovered new exit (range 8) 607 | -10/Materials | Repaired Lgt. EM Pulse Cannon 776 | -10/Materials | Core integrity fell below 50% 791 | -10/Materials | Core integrity fell below 20% 831 | -10/Materials | Core destroyed Last Messages --------------- 00805_ U-05 Engineer lays Concrete. 00806_ R-06 Scavenger collects Heat Sink. 00806_ U-05 Engineer lays Concrete. 00807_ U-05 Engineer builds a Wall. 00808_ R-06 Scavenger collects Structural Scanner. 00812_ U-05 Engineer lays Concrete. 00813_ U-05 Engineer builds a Wall. 00814_ R-06 Scavenger collects Wheel. 00814_ U-05 Engineer builds a Wall. 00817_ S-10 Pest misfires. 00817_ U-05 Engineer lays Concrete. 00821_ U-05 Engineer builds a Wall. 00821_ Player 2 attaches Lgt. EM Pulse Cannon. 00822_ U-05 Engineer lays Concrete. 00824_ U-05 Engineer builds a Wall. 00826_ U-05 Engineer lays Concrete. 00828_ U-05 Engineer builds a Wall. 00828_ U-05 Engineer lays Concrete. 00829_ K-01 Serf collects debris. 00829_ U-05 Engineer lays Concrete. Map ----- +----------------------------------------------------+ | ##### #??????????# "%" ## !!! #? ???????? | | + #??????????# ^^"%" ## !!! #?? ??????? | | """ # #??????????# ## !!! #??? ??????? | | """ # ############ ####+####???? ?????? | | """ # *! # #??????# ????? | | """ + !! # #???????? ?????? | | """ # # #??????????????? | | """ ####+####+##### " """ #??????????????? | | """ ## # # " """ #??????????????? | | ## # " " """ #??????????????? | | ###### # """ " ""######??????? ????? | | ?????# ///# """ " # #???????????+ ????? | | ?????# //[# """ " u u# #???????????# #???? | | ?????# //[# " #"######??????# #???? | | ?????# ########""""#% #! #??????# #???? | | ?????# #??????## # =# #??????+ #???? | | ?????# " #???????### # # #??????# #???? | | ?????# T #?????????### + " " #??????# #???? | | ?????# " #?########### # "R" #??????# #???? | | ?????# #?# # # """ #??????# ##### | | ?????#######?# # ########??????# ## | | ?????????????# # ##########????+ ## | | ???????#?????# / ##"""""""#????# ## | | ?????????????# """ # ##" "| "#???## ## | | ???????#?????# """ # ##" "##### # | | ?????????????# """ # @ r r r k T # | | ???????#???#?# "T" + < "" / | | ??????????#??########### # | | ??????????????# ### ## ##### # | | ???????#??????# """ #?# ############### ## | | ????????#??#??# """ #?# # # ## | | ??????????????#[ """ ### # + ##* % | | ?????#????????# ] ""#t# """ """ """ # ## %= | | ??????????????# """ Y"#k# """ """ """ # ###/# | | ?##########???# """ ""# # """ """ """ # # = | | ?# #???# """ ### # # # | | ?# """ #???# # # # # ########## + == | | ?# """ #???####/##### #=# ########### # == | | ?# """ #?????# ######+##### [[[# # == | | ?#* #?????# # # """ [[ # #! | | ?# """ ##????# # # "T [[ # #*% | | ?# """ #?????# + # """ # #*% % | | ?# """ #?????# #! # """ + % # = = | | ?# #?????# # # """ # # | | ?#####+####?##### ############ """ ## ## "" | | ???# ####### # ## ## ## ## "" | | ???# | ## ############### ## | | ???# T % ########?????????????# ###### | | ???# % #??#####?????????????# #????? | | ?#?# ####### #??# ##????????????# #????? | +----------------------------------------------------+ Best States ------------- Heat Dissipation 25 Energy Generation 10 Energy Capacity 250 Matter Stores 300 Matter Capacity 300 Sight Range 18 Robot Scan Range 10 Terrain Scan Range 14 Terrain Scan Density 10 Evasion (%) 50 Item Schematics ----------------- None Robot Schematics ------------------ None Fabricated ------------ Nothing Alien Tech Used ----------------- None Achievements -------------- None Challenges ------------ None Player 2 | -11 -10 ---------- Run | Scr Mat Slots Evolved . | . . Power . | . . Propulsion . | . . Utility . | . . Weapon . | . . Parts Attached 14 | . 14 Parts Lost 2 | . 2 Damage Taken 361 | . 361 Core 75 | . 75 Player 2/Cogmind (%) 29 | . 29 Absorbed by Shields . | . . Damage Inflicted 736 | . 736 Player 2/Cogmind (%) 41 | . 41 Combat Hostiles Destroyed 9 | . 9 Player 2/Cogmind (%) 60 | . 60 Game ------ Seed CoolantHoverStripper Manual? 0 Play Time 00:19:27 Cumulative 10.4 hours Start 2020.06.05 @ 03:18:36 End 2020.06.05 @ 03:36:11 Sessions 1 Manual Loads 0 Difficulty Rogue Special Mode AFD2020/Player2 Game No. 13 Rogue 13 Adventurer 0 Explorer 0 Win Type - Total 0 Types 0/0/0/0/0/0/0 Lore% 15 Gallery% 13 Achievement% 13 Wizard Run 0 Options --------- ASCII 0 Keyboard 0 Movement Numpad Keybinds 0 Fullscreen 1 Font 12/Smallcaps Map View 83x54 Tactical HUD 1 Map Filters NONE Filters NONE Steam 1 RUN: cccfc5ff-e94f-4e96-a908-37cee1f86d37